Workbook

Sheet Gam Cal_Dry
A1: Gamma Calibration | B1: User must enter values in Red
A3: Internal Thickness (cm) = | B3: 6.4
A4: Titanium Density (g/cc) = | B4: 4.506
A5: Air Density (g/cc) = | B5: 0
A7: Titanium Thickness (cm) | B7: Average Density (g/cc) | C7: Av. Den. * Thickness | D7: Intensity (cps) | E7: Ln(cps)
A8: 6 | B8: =((A8/D)*Al_Dens)+(((D-A8)/D*W_Dens)) -> 4.224375 | C8: =B8*D -> 27.036 | D8: 4608 | E8: =LN(D8) -> 8.435549202 | G8: 4608
A9: 5 | B9: =((A9/D)*Al_Dens)+(((D-A9)/D*W_Dens)) -> 3.5203125 | C9: =B9*D -> 22.53 | D9: 6198 | E9: 8.731981938 | G9: 6198
A10: 4 | B10: 2.81625 | C10: 18.024 | D10: 8355 | E10: 9.030615441 | G10: 8355
A11: 3 | B11: 2.1121875 | C11: 13.518 | D11: 11343 | E11: 9.336356093 | G11: 11343
A12: 2 | B12: 1.408125 | C12: 9.012 | D12: 15389 | E12: 9.641408247 | G12: 15389
A13: 1 | B13: =((A13/D)*Al_Dens)+(((D-A13)/D*W_Dens)) -> 0.7040625 | C13: =B13*D -> 4.506 | D13: 21782 | E13: 9.98883922 | G13: 21782
A14: 0 | B14: 0 | C14: 0 | D14: 25060 | E14: 10.12902823 | G14: 25060

Sheet Gam Cal
A1: Gamma Calibration | B1: User must enter values in Red
A3: Internal Thickness (cm) = | B3: 6.6
A4: Titanium Density (g/cc) = | B4: 4.506
A5: Water Density (g/cc) = | B5: 1
A7: Titanium Thickness (cm) | B7: Average Density (g/cc) | C7: Av. Den. * Thickness | D7: Intensity (cps) | E7: Ln(cps)
A8: 6 | B8: =((A8/D)*Al_Dens)+(((D-A8)/D*W_Dens)) -> 4.187272727 | C8: =B8*D -> 27.636 | D8: 4169 | E8: =LN(D8) -> 8.335431478 | G8: 4608
A9: 5 | B9: =((A9/D)*Al_Dens)+(((D-A9)/D*W_Dens)) -> 3.656060606 | C9: =B9*D -> 24.13 | D9: 5166 | E9: 8.549853974 | G9: 6198
A10: 4 | B10: 3.124848485 | C10: 20.624 | D10: 6445 | E10: 8.771059915 | G10: 8355
A11: 3 | B11: 2.593636364 | C11: 17.118 | D11: 8064 | E11: 8.99516499 | G11: 11343
A12: 2 | B12: 2.062424242 | C12: 13.612 | D12: 10094 | E12: 9.219696467 | G12: 15389
A13: 1 | B13: =((A13/D)*Al_Dens)+(((D-A13)/D*W_Dens)) -> 1.531212121 | C13: =B13*D -> 10.106 | D13: 12906 | E13: 9.465447598 | G13: 21782
A14: 0 | B14: 1 | C14: 6.6 | D14: 14957 | E14: 9.612934697 | G14: 25060

Sheet Displ Cal
A1: Core Diameter Calibration | B1: User must enter values in Red
A4: Volts (bits) | B4: Displacement (mm)
A6: 1622.883721 | B6: 0
A7: 3185.219512 | B7: -3.2
A8: 4099.272727 | B8: -5
A9: 6594.789474 | B9: -10
A10: 9073.97619 | B10: -15
A14: Scale on Displacement Channel | B14: =slope

Sheet P Wave Cal
A1: P-wave Calibration | B1: User must enter values in Red
A3: Temperature (deg C) = | B3: 23.61
A4: Salinity (ppt) = | B4: 0
A5: Depth (m) = | B5: 0
A6: Velocity of sound in distilled water (m/s) = | B6: =1492.9+3*(T-10)-0.006*(T-10)^2-0.04*(T-18)^2+1.2*(S-35)-0.01*(T-18)*(S-35)+z/61 -> 1491.323223 | H6: Velocity of sound in titanium (m/s) = | I6: 2730
A7: Total Thickness (cm) = | B7: 7.12 | H7: Total Thickness (cm) = | I7: 7.12
A8: Total Liner Thickness (cm) = | B8: 0.52 | H8: Total Liner Thickness (cm) = | I8: 0
A10: TT = | B10: =10000*(B7-B8)/B6 -> 44.25599961 | C10: (micro secs) | H10: TT = | I10: =10000*(I7-I8)/I6 -> 26.08058608 | J10: (micro secs)
A11: TOT = | B11: 68.52 | C11: (micro secs) | H11: TOT = | I11: 47.4 | J11: (micro secs)
A12: PTO = | B12: =B11-B10 -> 24.26400039 | C12: (micro secs) | H12: PTO = | I12: =I11-I10 -> 21.31941392 | J12: (micro secs)
B14: Salinity (ppt) = | C14: 0
B15: Depth (m) = | C15: 0
I16: =64/(33-I12)*1000 -> 5479.17712
B17: Temp (deg C) | C17: Velocity (m/s) | E17: Depth (m) | F17: Velocity (m/s)
B18: 0 | C18: =1492.9+3*(B18-10)-0.006*(B18-10)^2-0.04*(B18-18)^2+1.2*($C$14-35)-0.01*(B18-18)*($C$14-35)+$C$15/61 -> 1401.04 | E18: 0 | F18: =1492.9+3*(4-10)-0.006*(4-10)^2-0.04*(4-18)^2+1.2*(35-35)-0.01*(4-18)*(35-35)+E18/61 -> 1466.844
B19: =B18+2 -> 2 | C19: 1410.676 | E19: 500 | F19: =1492.9+3*(4-10)-0.006*(4-10)^2-0.04*(4-18)^2+1.2*(35-35)-0.01*(4-18)*(35-35)+E19/61 -> 1475.040721
B20: =B19+2 -> 4 | C20: 1419.944 | E20: 1000 | F20: 1483.237443
B21: 6 | C21: 1428.844 | E21: 1500 | F21: 1491.434164
B22: 8 | C22: 1437.376 | E22: 2000 | F22: 1499.630885
B23: 10 | C23: 1445.54 | E23: 2500 | F23: 1507.827607
B24: 12 | C24: 1453.336 | E24: 3000 | F24: 1516.024328
B25: 14 | C25: 1460.764 | E25: 3500 | F25: 1524.221049
B26: 16 | C26: 1467.824 | E26: 4000 | F26: 1532.41777
B27: =B26+2 -> 18 | C27: 1474.516 | E27: 4500 | F27: 1540.614492
B28: 20 | C28: 1480.84 | E28: 5000 | F28: 1548.811213
B29: 22 | C29: 1486.796 | E29: 5500 | F29: 1557.007934
B30: 24 | C30: 1492.384 | E30: 6000 | F30: 1565.204656
B31: 26 | C31: 1497.604
B32: 28 | C32: 1502.456
B33: 30 | C33: 1506.94

Sheet Resistivity Cal (use )
A1: Saline | B1: Resistivity | C1: Temperature | D1: Sensor | E1: Corrected | F1: Temp. Corrected
A2: Concentration | B2: at 20degC | C2: Gradient | D2: Response | E2: Sensor Res. | F2: Resitivity
A3: (g/l) | B3: (ohm-m) | C3: (ohm-m/degC) | D3: (mV) | E3: (mV) | F3: (ohm-m) | I3: Calibration Temperature | J3: 23.4 | K3: degC
A4: 35 | B4: 0.2086918231 | C4: -0.004 | D4: 421 | E4: =D4-$D$9 -> 421 | F4: =B4+C4*($J$3-20) -> 0.1950918231
A5: 17.5 | B5: 0.3901942981 | C5: -0.008 | D5: 216 | E5: =D5-$D$9 -> 216 | F5: =B5+C5*($J$3-20) -> 0.3629942981
A6: 3.5 | B6: 1.729845942 | C6: -0.038 | D6: 46 | E6: =D6-$D$9 -> 46 | F6: =B6+C6*($J$3-20) -> 1.600645942
A7: 1.75 | B7: 3.320951166 | C7: -0.073 | D7: 24 | E7: =D7-$D$9 -> 24 | F7: =B7+C7*($J$3-20) -> 3.072751166 | I7: Sediment Range
A8: 0.35 | B8: 15.4812298 | C8: -0.341 | D8: 5 | E8: =D8-$D$9 -> 5 | F8: =B8+C8*($J$3-20) -> 14.3218298
A9: Air | B9: - | C9: - | D9: 0 | E9: - | F9: -
